Cogmind - Beta 15 @@@ ROGUE MODE // 2025.06.10 @ 19:53:25 Player: CL-1C0 Result: Escaped! Performance ------------- Evolutions (9) 4500 Regions Visited (13) 2600 Robots Destroyed (13) 65 Value Destroyed (408) 408 Prototype IDs (0) 0 Alien Tech Used (0) 0 Bonus (23711) 23711 TOTAL SCORE: 31284 Bonus ------- Entered DSFs 1000 Win 3000 Win Speed 19711 Cogmind --------- Core Integrity 1141/1600 Matter 39/300 Energy 100/100 System Corruption 0% Temperature Cool (1) Movement Flying (45) Location To Epsilon Eridani Parts ------- > --- POWER (1) -------- (None) > --- PROPULSION (8) --- Impulse Thruster Array > --- UTILITY (14) ----- Machine Analyzer Advanced Signal Interpreter Advanced Terrain Scan Processor Advanced Terrain Scan Processor Advanced Terrain Scan Processor Advanced Terrain Scan Processor Advanced Terrain Scan Processor Advanced Salvage Targeting Computer Hacking Suite Advanced Hacking Suite > --- WEAPON (2) ------- (None) > --- INVENTORY (5) ---- Impulse Thruster Advanced Terrain Scanner Hacking Suite Peak State ------------ > --- POWER ------------ Light Nuclear Core > --- PROPULSION ------- Xenon Bombardment Thruster Field Propulsion Drive Impulse Thruster Impulse Thruster Field Propulsion Array Impulse Thruster Array > --- UTILITY ---------- Machine Analyzer Long-range Sensor Array Advanced Signal Interpreter Long-range Terrain Scanner Advanced Terrain Scan Processor Advanced Terrain Scan Processor Advanced Terrain Scan Processor Advanced Terrain Scan Processor Advanced Terrain Scan Processor Advanced Salvage Targeting Computer Hacking Suite Advanced Hacking Suite Advanced Hacking Suite > --- WEAPON ----------- Grenade Launcher Heavy Hammer > --- INVENTORY -------- Impulse Thruster Advanced Terrain Scanner Hacking Suite [Rating: 124] Favorites ----------- Power Light Nuclear Core Power Core Light Nuclear Core Reactor Antimatter Reactor Propulsion Surge Thruster Treads Light Treads Hover Unit Hover Unit Flight Unit Surge Thruster Utility Advanced Terrain Scan Processor Device Long-range Sensor Array Processor Advanced Terrain Scan Processor Hackware Hacking Suite Weapon Ripper Ballistic Gun Autogun Launcher Grenade Launcher Impact Weapon Heavy Hammer Slashing Weapon Ripper Build | -11 -10 -9 -8 -7 -7 -6 -5 -4 -3 -3 -2 -2 -1 ------- Run | Yrd Mat Mat Mat Fac DSF Fac Fac Fac Res Tes Res DSF Acc Slots Evolved 18 | . . 2 2 2 . 2 2 2 2 . 2 . 2 Power . | . . . . . . . . . . . . . . Propulsion 6 | . . 1 . . . 2 . . 2 . . . 1 Utility 12 | . . 1 2 2 . . 2 2 . . 2 . 1 Weapon . | . . . . . . . . . . . . . . Parts Attached 43 | 2 4 . 2 . 9 4 2 8 6 2 2 . 2 Power 3 | . . . . . 1 . . 1 . . . . 1 Engine . | . . . . . . . . . . . . . . Core 1 | . . . . . 1 . . . . . . . . Reactor 2 | . . . . . . . . 1 . . . . 1 Propulsion 16 | 2 . . 1 . 3 2 . 1 4 2 . . 1 Treads 2 | 2 . . . . . . . . . . . . . Leg . | . . . . . . . . . . . . . . Wheel . | . . . . . . . . . . . . . . Hover 3 | . . . 1 . . . . . 1 1 . . . Flight 11 | . . . . . 3 2 . 1 3 1 . . 1 Utility 20 | . 2 . 1 . 4 2 2 6 1 . 2 . . Device 5 | . . . . . . 1 1 3 . . . . . Storage . | . . . . . . . . . . . . . . Processor 11 | . 2 . 1 . 4 1 . 2 1 . . . . Hackware 4 | . . . . . . . 1 1 . . 2 . . Protection . | . . . . . . . . . . . . . . Artifact . | . . . . . . . . . . . . . . Weapon 4 | . 2 . . . 1 . . . 1 . . . . Energy Gun . | . . . . . . . . . . . . . . Energy Cannon . | . . . . . . . . . . . . . . Ballistic Gun 1 | . 1 . . . . . . . . . . . . Ballistic Cannon . | . . . . . . . . . . . . . . Launcher 1 | . 1 . . . . . . . . . . . . Special Weapon . | . . . . . . . . . . . . . . Impact Weapon 1 | . . . . . . . . . 1 . . . . Slashing Weapon 1 | . . . . . 1 . . . . . . . . Piercing Weapon . | . . . . . . . . . . . . . . Special Melee Weapon . | . . . . . . . . . . . . . . Unidentified Prototypes . | . . . . . . . . . . . . . . Parts Lost 13 | . . . . . . . . . 4 1 . . 8 Power 2 | . . . . . . . . . . 1 . . 1 Propulsion 7 | . . . . . . . . . 3 . . . 4 Utility 2 | . . . . . . . . . . . . . 2 Weapon 2 | . . . . . . . . . 1 . . . 1 Highest Loss Streak 7 | . . . . . . . . . 4 1 . . 7 To Critical Strikes . | . . . . . . . . . . . . . . Average Backups 3 | 4 1 1 1 1 3 4 3 4 4 4 4 2 2 Power . | . . . . . . . . . 1 . . . . Propulsion . | 3 . . . . 1 . . . . . . . . Utility 1 | . . . . . . 1 1 . 2 4 4 2 2 Weapon 1 | 1 1 1 1 1 2 2 2 2 1 . . . . Tool/Special . | . . . . . . . . . . . . . . Unused Backups 5 | . . . . . . 2 . . 1 . . . 2 Power 1 | . . . . . . 1 . . . . . . . Propulsion 1 | . . . . . . . . . . . . . 1 Utility 3 | . . . . . . 1 . . 1 . . . 1 Weapon . | . . . . . . . . . . . . . . Tool/Special . | . . . . . . . . . . . . . . Average Slot Usage (%) 78 | . 47 55 52 53 61 92 91 91 88 85 82 91 80 Core 2 | . . . . . 4 6 5 2 . 1 4 4 3 Reactor 1 | . . . . . . . . 2 4 2 . . . Treads 4 | . 28 22 18 15 3 . . . . . . . . Hover 1 | . . . 6 7 1 . . . 2 . . . . Flight 18 | . . . . . 15 32 29 23 21 19 21 21 20 Device 6 | . . . . . . 5 8 13 9 9 8 8 7 Processor 33 | . 15 22 19 23 28 41 35 40 38 38 34 34 32 Hackware 4 | . . . . . . . 5 2 4 4 4 13 11 Ballistic Gun 1 | . 1 11 9 7 3 . . . . . . . . Launcher 1 | . 1 . . . . . . . 1 4 4 4 2 Impact Weapon 1 | . . . . . . . . . 2 4 4 4 3 Slashing Weapon 2 | . . . . . 3 6 5 5 2 . . . . Peak Build Rating 124 | 2 8 8 13 12 40 50 55 86 107 113 117 117 124 Average Rating 70 | 1 5 8 9 12 23 48 54 75 99 107 108 117 115 On Entrance 51 | 6 2 8 8 12 12 40 50 55 84 107 107 117 117 Naked Turns . | . . . . . . . . . . . . . . Heaviest Build 26 | . 3 3 3 3 8 9 10 24 26 26 15 15 23 Greatest Support 51 | 3 3 3 3 3 9 15 15 24 45 45 37 51 51 Greatest Overweight (x) . | . . . . . . . . . . . . . . Average Overweight (x) . | . . . . . . . . . . . . . . Largest Inventory Capacity 5 | 5 5 5 5 5 5 5 5 5 5 5 5 5 5 Average Capacity 5 | 5 5 5 5 5 5 5 5 5 5 5 5 5 5 Most Carried 5 | 4 2 1 1 2 5 5 4 5 5 5 4 2 3 Average Carried 3 | 2 1 1 . 1 3 4 3 4 4 4 3 2 2 Final Capacity 5 | 5 5 5 5 5 5 5 5 5 5 5 5 5 5 Final Carried 5 | . 1 1 1 2 5 5 3 5 5 4 2 2 3 Class Distribution -------------------- 40% | Scavenger-Scout 24% | Hacker-Scout 20% | Mutant 11% | Scout 3% | Scavenger-Sprinter Dominant Class ---------------- Mutant | -10/Materials Mutant | -9/Materials Mutant | -8/Materials Mutant | -7/Factory Scavenger-Sprinter | -7/DSF Scavenger-Scout | -6/Factory Scavenger-Scout | -5/Factory Scavenger-Scout | -4/Factory Scout | -3/Research Scout | -3/Testing Scout | -2/Research Scout | -2/DSF Hacker-Scout | -1/Access Resources | -11 -10 -9 -8 -7 -7 -6 -5 -4 -3 -3 -2 -2 -1 ----------- Run | Yrd Mat Mat Mat Fac DSF Fac Fac Fac Res Tes Res DSF Acc Matter Collected 492 | 200 . . 49 . 158 61 . 10 . 14 . . . Remotely . | . . . . . . . . . . . . . . Salvage Created 257 | . . . 49 . . 61 . 32 57 58 . . . Parts 21 | . . . 4 . . 3 . 2 8 4 . . . Haulers Intercepted . | . . . . . . . . . . . . . . Recyclers Shooed . | . . . . . . . . . . . . . . Parts Field Recycled . | . . . . . . . . . . . . . . Retrieved Matter . | . . . . . . . . . . . . . . Parts Self-Destructed . | . . . . . . . . . . . . . . Prevented . | . . . . . . . . . . . . . . Kills | -11 -10 -9 -8 -7 -7 -6 -5 -4 -3 -3 -2 -2 -1 ------- Run | Yrd Mat Mat Mat Fac DSF Fac Fac Fac Res Tes Res DSF Acc Combat Hostiles Destroyed 7 | . . . 1 . . . . . 3 3 . . . Melee 1 | . . . 1 . . . . . . . . . . AOE 6 | . . . . . . . . . 3 3 . . . Classes Destroyed 5 | . 1 . 1 . . 1 . 1 1 . . . . Worker 1 | . . . . . . . . 1 . . . . . Operator 3 | . 1 . 1 . . . . 1 . . . . . Watcher 2 | . . . . . . 2 . . . . . . . Swarmer 6 | . . . . . . . . . 3 3 . . . Grunt 1 | . . . 1 . . . . . . . . . . Best Kill Streak 3 | . 1 . 1 . . 1 . 1 3 3 . . . Combat Bots Only 3 | . . . 1 . . . . . 3 3 . . . Max Kills in Single Turn 2 | . 1 . 1 . . 1 . 1 2 2 . . . Gunslinging . | . . . . . . . . . . . . . . Exploded 2 | . . . . . . . . . 2 2 . . . Melee 1 | . . . 1 . . . . . . . . . . Uniques/NPCs Destroyed . | . . . . . . . . . . . . . . Combat | -11 -10 -9 -8 -7 -7 -6 -5 -4 -3 -3 -2 -2 -1 -------- Run | Yrd Mat Mat Mat Fac DSF Fac Fac Fac Res Tes Res DSF Acc Hostile Shots Fired 191 | . . 19 3 . . 34 . 4 49 3 . 1 78 Missed 104 | . . 9 . . . 19 . 3 27 1 . 1 44 Hits 87 | . . 10 3 . . 15 . 1 22 2 . . 34 Melee 8 | . . . . . . . . . . . . . 8 Projectile 79 | . . 10 3 . . 15 . 1 22 2 . . 26 AOE 1 | . . . . . . . . . . . . . 1 Critical Strikes 9 | . . . . . . . . . 1 . . . 8 Damage Taken 1925 | . 24 80 67 . 22 193 . 23 531 71 . . 914 Core 650 | . . 22 11 . 22 28 . . 99 9 . . 459 Absorbed by Shields . | . . . . . . . . . . . . . . Core Remaining (%) 95 | 100 100 94 98 . 96 96 100 100 . 91 . 100 71 Volleys Fired 19 | . 9 . 2 . . . . . 6 2 . . . Largest 1 | . 1 . 1 . . . . . 1 1 . . . Hottest 30 | . 30 . 30 . . . . . 30 30 . . . Shots Fired 19 | . 9 . 2 . . . . . 6 2 . . . Gun 5 | . 4 . 1 . . . . . . . . . . Cannon . | . . . . . . . . . . . . . . Launcher 14 | . 5 . 1 . . . . . 6 2 . . . Special . | . . . . . . . . . . . . . . Kinetic 5 | . 4 . 1 . . . . . . . . . . Thermal . | . . . . . . . . . . . . . . Explosive 14 | . 5 . 1 . . . . . 6 2 . . . Electromagnetic . | . . . . . . . . . . . . . . Robot Hit Streak 2 | . 2 . 1 . . . . . . 1 . . . Robot Miss Streak 1 | . 1 . . . . . . . 1 . . . . Penetration Max . | . . . . . . . . . . . . . . Secondary Targets . | . . . . . . . . . . . . . . Shots Hit Robots 13 | . 3 . 1 . . 4 . 4 . 1 . . . Core Hits 17 | . 2 . 1 . . 2 . 1 6 5 . . . Critical Kills . | . . . . . . . . . . . . . . Critical Parts Destroyed . | . . . . . . . . . . . . . . Critical Strikes . | . . . . . . . . . . . . . . Melee Attacks 56 | . . . . . 4 13 2 22 6 3 . . 6 Impact 13 | . . . . . . . . . 4 3 . . 6 Slashing 43 | . . . . . 4 13 2 22 2 . . . . Piercing . | . . . . . . . . . . . . . . Sneak Attacks 4 | . . . . . . . . 4 . . . . . Combat Hostiles . | . . . . . . . . . . . . . . Follow-up Attacks . | . . . . . . . . . . . . . . Damage Inflicted 1067 | . 162 . 20 . . 175 . 353 195 162 . . . Guns 48 | . 30 . 18 . . . . . . . . . . Cannons . | . . . . . . . . . . . . . . Explosions 489 | . 132 . . . . . . . 195 162 . . . Melee 528 | . . . . . . 175 . 353 . . . . . Ramming 2 | . . . 2 . . . . . . . . . . Kinetic 48 | . 30 . 18 . . . . . . . . . . Thermal . | . . . . . . . . . . . . . . Explosive 489 | . 132 . . . . . . . 195 162 . . . Electromagnetic . | . . . . . . . . . . . . . . Impact . | . . . . . . . . . . . . . . Slashing 528 | . . . . . . 175 . 353 . . . . . Piercing . | . . . . . . . . . . . . . . Highest Corruption . | . . . . . . . . . . . . . . Average Corruption . | . . . . . . . . . . . . . . Corruption Purged . | . . . . . . . . . . . . . . Corruption Blocked . | . . . . . . . . . . . . . . Overload Shots . | . . . . . . . . . . . . . . Overflow Damage 209 | . 16 . . . . 27 . 166 . . . . . Projectiles . | . . . . . . . . . . . . . . Explosions 16 | . 16 . . . . . . . . . . . . Melee 193 | . . . . . . 27 . 166 . . . . . Knockbacks . | . . . . . . . . . . . . . . Impact . | . . . . . . . . . . . . . . Kinetic . | . . . . . . . . . . . . . . Secondary . | . . . . . . . . . . . . . . Self-Inflicted Damage 103 | . 25 . 23 . . . . . 28 27 . . . Shots 6 | . 1 . 1 . . . . . 2 2 . . . Rammed 1 | . . . 1 . . . . . . . . . . Targets Rammed 2 | . . . 2 . . . . . . . . . . Kicked . | . . . . . . . . . . . . . . Crushed 1 | . . . 1 . . . . . . . . . . Highest Temperature 12 | . . . . . . 12 . . . . . . . Average Temperature 5 | . . . . . . 5 . . . . . . . Received Heat Transfer 135 | . . 9 27 . 9 51 . 12 9 . . . 18 Siege Activations . | . . . . . . . . . . . . . . Martial Activations . | . . . . . . . . . . . . . . Shielding Activations . | . . . . . . . . . . . . . . Robots Disrupted . | . . . . . . . . . . . . . . Combat Hostiles . | . . . . . . . . . . . . . . Robots Corrupted . | . . . . . . . . . . . . . . Combat Hostiles . | . . . . . . . . . . . . . . Parts Fried . | . . . . . . . . . . . . . . Impact Corruptions . | . . . . . . . . . . . . . . Robots Melted . | . . . . . . . . . . . . . . Combat Hostiles . | . . . . . . . . . . . . . . Parts Melted . | . . . . . . . . . . . . . . Heat Transferred . | . . . . . . . . . . . . . . Parts Sabotaged . | . . . . . . . . . . . . . . Parts Stolen . | . . . . . . . . . . . . . . Parts Stripped . | . . . . . . . . . . . . . . Power Chain Reactions . | . . . . . . . . . . . . . . Alert | -11 -10 -9 -8 -7 -7 -6 -5 -4 -3 -3 -2 -2 -1 ------- Run | Yrd Mat Mat Mat Fac DSF Fac Fac Fac Res Tes Res DSF Acc Maximum Alert Level 1 | . . . . . . . . . 1 1 . . . Low Security (%) 94 | 100 100 100 100 100 100 100 100 100 70 54 100 100 100 Level 1 5 | . . . . . . . . . 29 45 . . . Level 2 . | . . . . . . . . . . . . . . Level 3 . | . . . . . . . . . . . . . . Level 4 . | . . . . . . . . . . . . . . Level 5 . | . . . . . . . . . . . . . . High Security . | . . . . . . . . . . . . . . Max Security . | . . . . . . . . . . . . . . Peak Influence 302 | . 39 6 20 2 5 69 37 49 302 300 168 126 75 Initial 169 | . . 6 . 2 3 2 33 17 9 169 168 126 75 Average 42 | . 21 3 5 . 3 19 35 22 88 212 168 126 40 Influence Increases 1020 | . 46 . 32 5 2 111 4 128 381 161 . . 150 Destroy 0b10 Robot/C 140 | . . . 20 . . . . . 60 60 . . . Destroy 0b10 Robot/NC 25 | . 5 . 5 . . 10 . 5 . . . . . Destroy Leader 24 | . . . . . . 4 . . 10 10 . . . Successful Hack 37 | . . . . 5 . . . 14 . . . . 18 Disable Machine 30 | . 15 . . . . 15 . . . . . . . Destroy Structure 164 | . 26 . 7 . 2 7 4 34 56 16 . . 12 Partial Spotted 105 | . . . . . . 15 . 15 30 . . . 45 Lose Combat Pursuer 495 | . . . . . . 60 . 60 225 75 . . 75 Influence Decreases 989 | . 30 16 25 7 2 47 36 147 97 163 132 42 245 Entered New Map 443 | . . 10 . 5 2 3 36 20 9 133 132 42 51 Time Decay 422 | . 30 6 25 2 . 44 . 127 54 20 . . 114 Lost Part 124 | . . . . . . . . . 34 10 . . 80 Squads Dispatched 16 | . 1 1 2 . 2 . . 2 1 2 . 1 4 Investigation 2 | . . . . . . . . 1 . 1 . . . Extermination 3 | . . . . . . . . 1 1 . . . 1 Reinforcement 11 | . 1 1 2 . 2 . . . . 1 . 1 3 Assault . | . . . . . . . . . . . . . . Garrison . | . . . . . . . . . . . . . . Intercept . | . . . . . . . . . . . . . . Searches Triggered . | . . . . . . . . . . . . . . Construction Impeded . | . . . . . . . . . . . . . . Haulers Reinforced . | . . . . . . . . . . . . . . Active Scanning Responses . | . . . . . . . . . . . . . . Cargo Convoy Interrupts . | . . . . . . . . . . . . . . Stealth | -11 -10 -9 -8 -7 -7 -6 -5 -4 -3 -3 -2 -2 -1 --------- Run | Yrd Mat Mat Mat Fac DSF Fac Fac Fac Res Tes Res DSF Acc Distress Signals 6 | . . 1 1 . . 1 . 1 1 1 . . . Communications Jammed . | . . . . . . . . . . . . . . Distress Signals . | . . . . . . . . . . . . . . Times Spotted 96 | . 6 6 6 . 3 9 . 15 22 7 . 1 21 Peak Tracking Total 13 | . 2 6 4 . 2 5 . 6 12 8 . 1 13 Tactical Retreats 11 | . . . . . . 2 . 3 3 1 . . 2 Traps | -11 -10 -9 -8 -7 -7 -6 -5 -4 -3 -3 -2 -2 -1 ------- Run | Yrd Mat Mat Mat Fac DSF Fac Fac Fac Res Tes Res DSF Acc Traps Triggered 2 | . . . . . . . . . 1 1 . . . Indirectly . | . . . . . . . . . . . . . . Trap Hack Attempts . | . . . . . . . . . . . . . . Triggered . | . . . . . . . . . . . . . . Disarmed . | . . . . . . . . . . . . . . Reprogrammed . | . . . . . . . . . . . . . . Reused . | . . . . . . . . . . . . . . Traps Extracted . | . . . . . . . . . . . . . . Installed . | . . . . . . . . . . . . . . Triggered . | . . . . . . . . . . . . . . Machines | -11 -10 -9 -8 -7 -7 -6 -5 -4 -3 -3 -2 -2 -1 ---------- Run | Yrd Mat Mat Mat Fac DSF Fac Fac Fac Res Tes Res DSF Acc Machines Disabled 2 | . 1 . . . . 1 . . . . . . . Max in Single Turn 1 | . 1 . . . . 1 . . . . . . . Machines Repaired . | . . . . . . . . . . . . . . Machines Dismantled . | . . . . . . . . . . . . . . Machines Sabotaged . | . . . . . . . . . . . . . . Overloaded Fab Kills . | . . . . . . . . . . . . . . Hacking | -11 -10 -9 -8 -7 -7 -6 -5 -4 -3 -3 -2 -2 -1 --------- Run | Yrd Mat Mat Mat Fac DSF Fac Fac Fac Res Tes Res DSF Acc Machines Accessed 9 | . . . 1 1 . . . 5 . . 1 . 1 Terminals 9 | . . . 1 1 . . . 5 . . 1 . 1 Fabricators . | . . . . . . . . . . . . . . Repair Stations . | . . . . . . . . . . . . . . Recycling Units . | . . . . . . . . . . . . . . Scanalyzers . | . . . . . . . . . . . . . . Garrison Access . | . . . . . . . . . . . . . . Total Hacks 16 | . . . 1 2 . . . 10 . . 2 . 1 Successful 7 | . . . 1 1 . . . 3 . . 1 . 1 Failed 9 | . . . . 1 . . . 7 . . 1 . . Catastrophic 2 | . . . . . . . . 2 . . . . . Database Lockouts . | . . . . . . . . . . . . . . Manual 7 | . . . . . . . . 7 . . . . . Terminals 16 | . . . 1 2 . . . 10 . . 2 . 1 Fabricators . | . . . . . . . . . . . . . . Repair Stations . | . . . . . . . . . . . . . . Recycling Units . | . . . . . . . . . . . . . . Scanalyzers . | . . . . . . . . . . . . . . Garrison Access . | . . . . . . . . . . . . . . Terminal Hacks 6 | . . . 1 1 . . . 2 . . 1 . 1 Open Door 1 | . . . . . . . . . . . . . 1 Open DSF 2 | . . . . 1 . . . . . . 1 . . Branch Access Points 1 | . . . . . . . . 1 . . . . . Terminal Index 1 | . . . . . . . . 1 . . . . . Zone Layout 1 | . . . 1 . . . . . . . . . . Fabricator Hacks . | . . . . . . . . . . . . . . Repair Station Hacks . | . . . . . . . . . . . . . . Recycling Unit Hacks . | . . . . . . . . . . . . . . Scanalyzer . | . . . . . . . . . . . . . . Garrison Access Hacks . | . . . . . . . . . . . . . . Unauthorized Hacks 1 | . . . . . . . . 1 . . . . . Terminals 1 | . . . . . . . . 1 . . . . . Assimilate 1 | . . . . . . . . 1 . . . . . Fabricators . | . . . . . . . . . . . . . . Repair Stations . | . . . . . . . . . . . . . . Recycling Units . | . . . . . . . . . . . . . . Scanalyzers . | . . . . . . . . . . . . . . Garrison Access . | . . . . . . . . . . . . . . Data Cores Recovered . | . . . . . . . . . . . . . . Used . | . . . . . . . . . . . . . . Hacking Detections 6 | . . . 1 . . . . 4 . . . . 1 Full Trace Events 1 | . . . . . . . . 1 . . . . . Feedback Events . | . . . . . . . . . . . . . . Feedback Blocked . | . . . . . . . . . . . . . . Robot Schematics Acquired . | . . . . . . . . . . . . . . Robots Built . | . . . . . . . . . . . . . . Authchips . | . . . . . . . . . . . . . . Time . | . . . . . . . . . . . . . . Total Robot Build Rating . | . . . . . . . . . . . . . . Part Schematics Acquired . | . . . . . . . . . . . . . . Parts Built . | . . . . . . . . . . . . . . Authchips . | . . . . . . . . . . . . . . Time . | . . . . . . . . . . . . . . Total Part Build Rating . | . . . . . . . . . . . . . . Parts Repaired . | . . . . . . . . . . . . . . Time . | . . . . . . . . . . . . . . Parts Recycled . | . . . . . . . . . . . . . . Recycled Matter . | . . . . . . . . . . . . . . Retrieved Matter . | . . . . . . . . . . . . . . Retrieved Components . | . . . . . . . . . . . . . . Parts Scanalyzed . | . . . . . . . . . . . . . . Part Schematics Acquired . | . . . . . . . . . . . . . . Parts Damaged . | . . . . . . . . . . . . . . Bothacking | -11 -10 -9 -8 -7 -7 -6 -5 -4 -3 -3 -2 -2 -1 ------------ Run | Yrd Mat Mat Mat Fac DSF Fac Fac Fac Res Tes Res DSF Acc Used RIF Installer . | . . . . . . . . . . . . . . Robots Hacked . | . . . . . . . . . . . . . . Non-combat . | . . . . . . . . . . . . . . Combat . | . . . . . . . . . . . . . . Robot Hacks Applied . | . . . . . . . . . . . . . . Relay Couplers Released . | . . . . . . . . . . . . . . Fabnet Peak Effective % . | . . . . . . . . . . . . . . Robots Rewired . | . . . . . . . . . . . . . . Allies Hacked . | . . . . . . . . . . . . . . Hacks Repelled . | . . . . . . . . . . . . . . Allies | -11 -10 -9 -8 -7 -7 -6 -5 -4 -3 -3 -2 -2 -1 -------- Run | Yrd Mat Mat Mat Fac DSF Fac Fac Fac Res Tes Res DSF Acc Total Allies 1 | . . . . . . . . 1 . . . . . Largest Group 1 | . . . . . . . . 1 . . . . . Highest-Rated Group 26 | . . . . . . . . 26 . . . . . Highest-Rated Ally 26 | . . . . . . . . 26 . . . . . Total Orders . | . . . . . . . . . . . . . . Ally Attacks . | . . . . . . . . . . . . . . Total Damage . | . . . . . . . . . . . . . . Kills . | . . . . . . . . . . . . . . Allies Corrupted . | . . . . . . . . . . . . . . Allies Melted . | . . . . . . . . . . . . . . Intel | -11 -10 -9 -8 -7 -7 -6 -5 -4 -3 -3 -2 -2 -1 ------- Run | Yrd Mat Mat Mat Fac DSF Fac Fac Fac Res Tes Res DSF Acc Active Infowar (turns) 1040 | . . . 12 43 77 112 11 291 154 57 13 17 253 Sensors 644 | . . . . . . . 10 187 154 57 13 12 211 Terrain 857 | . . . . . . 105 11 281 154 57 13 13 223 Machine Analysis 1040 | . . . 12 43 77 112 11 291 154 57 13 17 253 Robot Analysis Total . | . . . . . . . . . . . . . . Derelict Logs Recovered . | . . . . . . . . . . . . . . Drone Launches . | . . . . . . . . . . . . . . Drone Recoveries . | . . . . . . . . . . . . . . Exploration | -11 -10 -9 -8 -7 -7 -6 -5 -4 -3 -3 -2 -2 -1 ------------- Run | Yrd Mat Mat Mat Fac DSF Fac Fac Fac Res Tes Res DSF Acc Turns Passed 1213 | 4 78 38 65 43 77 112 11 291 154 57 13 17 253 Spaces Moved 2855 | 1 107 75 104 83 144 285 17 830 418 119 30 56 586 Core 405 | 1 107 75 104 83 35 . . . . . . . . Treads . | . . . . . . . . . . . . . . Legs . | . . . . . . . . . . . . . . Wheels . | . . . . . . . . . . . . . . Hover . | . . . . . . . . . . . . . . Flight 2450 | . . . . . 109 285 17 830 418 119 30 56 586 Fastest Speed 23 | 50 50 50 50 50 29 23 23 23 25 32 35 29 29 Average Speed 32 | 50 50 50 50 50 34 23 23 25 26 32 35 29 38 Slowest Speed 50 | 50 50 50 50 50 50 23 23 27 34 39 35 29 45 Overloaded Moves . | . . . . . . . . . . . . . . Propulsion Burnouts . | . . . . . . . . . . . . . . Robots Hopped 9 | . . . . . . . . 6 2 . . . 1 Potential Cave-ins . | . . . . . . . . . . . . . . Cave-ins Triggered . | . . . . . . . . . . . . . . Exploration Rate (%) 22 | 2 30 16 16 5 80 10 1 30 21 24 1 53 24 Regions Visited 13 Branch Regions 1 Pre-discovered Areas . | . . . . . . . . . . . . . . Known Exits Taken 7 | . . . . 1 . 1 1 1 1 1 1 . . Unknown Exits Taken 4 | 1 1 1 1 . . . . . . . . . . Scrap Searched . | . . . . . . . . . . . . . . Spaces Dug 81 | . 18 . 6 . 2 7 2 17 19 6 . . 4 Terrain Destroyed 110 | . 29 . 6 . 2 7 2 17 32 11 . . 4 Melee 41 | . . . . . 2 7 2 17 6 3 . . 4 Projectile . | . . . . . . . . . . . . . . AOE 69 | . 29 . 6 . . . . . 26 8 . . . Terrain Rammed . | . . . . . . . . . . . . . . Walls Destroyed . | . . . . . . . . . . . . . . Machines Disabled . | . . . . . . . . . . . . . . Actions | -11 -10 -9 -8 -7 -7 -6 -5 -4 -3 -3 -2 -2 -1 --------- Run | Yrd Mat Mat Mat Fac DSF Fac Fac Fac Res Tes Res DSF Acc Total 3014 | 5 122 74 112 83 162 312 20 867 440 128 31 56 602 Wait 16 | . . . 1 . . 1 . 3 . 1 . 1 9 Move 2824 | . 106 74 103 82 143 284 16 818 413 118 29 55 583 Hop 8 | . . . . . . . . 5 2 . . . 1 Pick Up 21 | . 2 . . 1 3 5 . 5 4 . . . 1 Fast Attach 22 | . 2 . 2 . 8 2 . 2 2 2 . . 2 Attach 17 | 2 2 . 1 . . 2 2 2 3 1 2 . . Detach 2 | . 1 . 1 . . . . . . . . . . Swap 7 | . . . . . 1 . . 4 2 . . . . Drop 20 | 3 . . . . 3 5 . 6 2 1 . . . Fire 19 | . 9 . 2 . . . . . 6 2 . . . Melee 56 | . . . . . 4 13 2 22 6 3 . . 6 Ram . | . . . . . . . . . . . . . . Kick . | . . . . . . . . . . . . . . Crush 2 | . . . 2 . . . . . . . . . . Escape Stasis . | . . . . . . . . . . . . . . Rewire . | . . . . . . . . . . . . . . Trap . | . . . . . . . . . . . . . . Miscellaneous . | . . . . . . . . . . . . . . Route ------- -11/Scrapyard -10/Materials -9/Materials -8/Materials -7/Factory -7/DSF -6/Factory (discovered 2 exits: *Fac / *Low) -5/Factory -4/Factory (discovered 3 exits: *Res / *Upp x2) -3/Research -3/Testing -2/Research -2/DSF -1/Access To Epsilon Eridani History --------- Turn | Location | Event 1 | -11/Scrapyard | Released all parts (6) 5 | -11/Scrapyard | Discovered new exit (range 0) 5 | -11/Scrapyard | Entered Materials 61 | -10/Materials | Discovered new exit (range 13) 83 | -10/Materials | Entered another Materials area 83 | -9/Materials | Evolved 2 slots: Propulsion x1, Utility x1 115 | -9/Materials | Discovered new exit (range 13) 121 | -9/Materials | Entered another Materials area 121 | -8/Materials | Evolved 2 slots: Utility x2 179 | -8/Materials | Discovered new exit (range 8) 186 | -8/Materials | Entered Factory 186 | -7/Factory | Evolved 2 slots: Utility x2 229 | -7/Factory | Identified exit to DSF 229 | -7/Factory | Entered DSF 230 | -7/DSF | Joined Warlord attack on 0b10 via DSF 256 | -7/DSF | Additional patrols routed to DSF 261 | -7/DSF | Discovered new exit (range 16) 306 | -7/DSF | Entered Factory 306 | -6/Factory | Evolved 2 slots: Propulsion x2 311 | -6/Factory | Lost 7 allies 319 | -6/Factory | Discovered new exit (range 16) 325 | -6/Factory | Discovered new exit (range 15) 326 | -6/Factory | 4 allies followed out of DSF 410 | -6/Factory | Spotted B-75 Beast 416 | -6/Factory | Identified exit to Lower Caves 418 | -6/Factory | Identified exit to Factory 418 | -6/Factory | Entered another Factory area 418 | -5/Factory | Evolved 2 slots: Utility x2 420 | -5/Factory | Discovered new exit (range 18) 429 | -5/Factory | Identified exit to Factory 429 | -5/Factory | Entered another Factory area 429 | -4/Factory | Evolved 2 slots: Utility x2 470 | -4/Factory | Identified exit to Upper Caves 637 | -4/Factory | Build established: Scavenger-Scout 717 | -4/Factory | Discovered new exit (range 12) 720 | -4/Factory | Identified exit to Research 720 | -4/Factory | Entered Research 720 | -3/Research | Evolved 2 slots: Propulsion x2 777 | -3/Research | Found Adv. Powered Armor 856 | -3/Research | Discovered new exit (range 24) 869 | -3/Research | Lost 4 parts (3n1w) 874 | -3/Research | Identified exit to Testing 874 | -3/Research | Entered Testing 923 | -3/Testing | Discovered new exit (range 17) 930 | -3/Testing | Identified exit to Research 931 | -3/Testing | Entered Research 931 | -2/Research | Evolved 2 slots: Utility x2 943 | -2/Research | Identified exit to DSF 944 | -2/Research | Entered DSF 957 | -2/DSF | Discovered new exit (range 16) 961 | -2/DSF | Identified exit to Access 961 | -2/DSF | Entered Access 961 | -1/Access | Evolved 2 slots: Propulsion x1, Utility x1 1183 | -1/Access | Spotted B-99 Colossus 1183 | -1/Access | Spotted B-99 Colossus 1212 | -1/Access | Discovered new exit (range 5) 1213 | -1/Access | Identified exit to Surface 1214 | *** | Escaped! Last Messages --------------- 01192_ Penetrated by Slug. 01192_ Field Propulsion Drive destroyed. 01192_ Terminal disabled. 01194_ Slug penetrates C-57 Dissector. 01196_ Impulse Thruster severed. 01196_ Lrn. Terrain Scanner severed. 01198_ Acquired Quantum Reactor. 01204_ Quantum Reactor severed. 01206_ Knocked back. 01207_ Hvy. Hammer severed. 01207_ Adv. Hacking Suite destroyed. 01207_ Field Propulsion Array destroyed. 01210_ Connecting with Terminal... >>Open(Door) Sealed Barrier opened. 01212_ The Access Shell folds into the floor. 01212_ EXIT=FOUND 01213_ C-57 Dissector knocked back. 01213_ C-57 Dissector destroyed. 01213_ EXIT=IDENTIFIED: SURFACE Map ----- +----------------------------------------------------+ | ?????????????????????????????????????????????????? | | ?????????????????????????????????????????????????? | | ?????????????????????????????????????????????????? | | ? ???????????????????????????????????????????????? | | ???+?????????????????????????????????????????????? | | ? ???? ?????? ???????????????????????????????????? | | ??#??????? ??#???????????????????????????????????? | | #?#?? ?? ???????????????????????????????????????? | | #??? ?? ???#???????????????????????????????????? | | ##? ??? ? ? ?????????????????????????????????????? | | ???? ??????#??????????????????????????????????? | | ??#? ? ?? ??#???? ?????????????????????????????? | | #??? " ??? ? ??? ?????????????????????????????? | | #?? "%" ??? ??????"?????????????????? ?????????? | | #?# "#?#?##??? "?"????????????????? #????????? | | ### #?#####???? " ??????????????? +????????? | | #?# ##?##???? ?? ? ?????????????? #????????? | | ??# ###????# ? ?? ?? ???????????? #????????? | | ?## ###?#?###?##?###??????????????? #????????? | | ### ####?##?######?##?##??###????## #????????? | | ### ###########?########### ###### #????????? | | #?# ### ??"" ##???????? | | ?## ### """" #???????? | | ##" % ### """" ##???????? | | """" #???????? | | "?"" "@ #???????? | | "?"" "" = #???????? | | ""?" * #???????? | | ##" ## """" c c !% ##???????? | | ?## ## """" """ """ #????????? | | #?# ## ?? ? """" """T "" #????????? | | ??# #?#?##?#?##?########## # # #????????? | | ### ############??#?##?###########/ #????????? | | " # ###?#??##??####?#???#??#?##??# #????????? | | ""# ######?##?#?#?#??###?#??##???# #????????? | | ""# ############?#################* #????????? | | ###?## / + ???????? | | "##### # #????""""" | | "##?## + #????""""" | | "##?## # # ???""""" | | " " T#?#?# " # #? ??""""" | | " " ##### """ # #????""""" | | ""G"" "##?## """ # # ??????? | | "#??## " # #????????? | | ###### # # ???????? | | [ =+! # # ???????? | | ## # # ###??#???? | | ## # # #????????? | | ## ^ ####+######### ##???????? | | ##+#############"T##### ###?????#?##?? #??#?????? | +----------------------------------------------------+ Best States ------------- Heat Dissipation 52 Energy Generation 25 Energy Capacity 350 Matter Stores 280 Matter Capacity 300 Sight Range 16 Robot Scan Range 18 Terrain Scan Range 24 Terrain Scan Density 1010 Evasion (%) 65 Recoil Reduction 2 Salvage Targeting 3 Offensive Hacking 38 Defensive Hacking 10 Item Schematics ----------------- None Robot Schematics ------------------ None Fabricated ------------ Nothing Repaired ---------- Nothing Alien Tech Used ----------------- None Achievements -------------- None Challenges ------------ None Game ------ Seed SlugTransmissionRigger Manual? 0 Play Time 00:37:01 Cumulative 532.8 hours Start 2025.06.10 @ 19:17:48 End 2025.06.10 @ 19:53:25 Sessions 1 Manual Loads 0 Difficulty Rogue Special Mode None Game No. 626 Rogue 626 Adventurer 0 Explorer 0 Win Type 0 Total 19 Types 13/0/5/1/0/0/0/0/0/0 Lore% 83 Gallery% 82 Achievement% 82 Wizard Run 0 Options --------- Layout 0 ASCII 0 Keyboard 0 Movement Numpad Keybinds 0 Fullscreen 1 Font 18/SmallcapsGlow Map View 76x50 Zoom Use 0% Tactical HUD 1 Map Filters NONE Filters NONE Steam 1 RUN: 09dc0173-91da-4c32-bfb0-d9aa69d0f93b